Workbook

Sheet Quick Start
C6: Version 2.0 | G6: LEGEND:
G7: Required Input
B9: Select your airport Hub Size: | C9: Medium
B10: Enter the month and year you would like the forecast to start on (defaults to NEXT month with RESET): | C10: =EOMONTH(TODAY(),0)+1 -> 2022-05-01
B11: Enter the number of active security badges currently issued: | C11: 15000
C12: =DATE(YEAR(D12),MONTH(D12)-1,DAY(D12)) -> 2021-11-01 | D12: 2021-12-01 | E12: 2022-01-01 | F12: 2022-02-01 | G12: =DATE(YEAR(H12),MONTH(H12)-1,DAY(H12)) -> 2022-03-01 | H12: =DATE(YEAR(C10),MONTH(C10)-1,DAY(C10)) -> 2022-04-01
B13: Enter the number of new security badges issued in the six months prior to the forecast start date: | C13: 100 | D13: 80 | E13: 60 | F13: 40 | G13: 100 | H13: 100
C14: =C12 -> 2021-11-01 | D14: 2021-12-01 | E14: 2022-01-01 | F14: 2022-02-01 | G14: 2022-03-01 | H14: 2022-04-01
B15: Enter the number of security badges renewed in the six months prior to the forecast start date: | C15: 150 | D15: 200 | E15: 175 | F15: 80 | G15: 100 | H15: 110
C16: =DATE(YEAR(C10),MONTH(C10),DAY(C10)) -> 2022-05-01 | D16: =DATE(YEAR(C16),MONTH(C16)+1,DAY(C16)) -> 2022-06-01 | E16: =DATE(YEAR(D16),MONTH(D16)+1,DAY(D16)) -> 2022-07-01 | F16: =DATE(YEAR(E16),MONTH(E16)+1,DAY(E16)) -> 2022-08-01 | G16: =DATE(YEAR(F16),MONTH(F16)+1,DAY(F16)) -> 2022-09-01 | H16: =DATE(YEAR(G16),MONTH(G16)+1,DAY(G16)) -> 2022-10-01
B17: *OPTIONAL - enter any large enrollments planned for the six months after the forecast start date: | C17: 0 | D17: 0 | E17: 0 | F17: 0 | G17: 0 | H17: 0
C18: =C12 -> 2021-11-01 | D18: =D12 -> 2021-12-01 | E18: 2022-01-01 | F18: 2022-02-01 | G18: 2022-03-01 | H18: 2022-04-01
B19: Enter the number of terminated/expired badges for the last six months prior to forecast start date: | C19: 50 | D19: 40 | E19: 30 | F19: 20 | G19: 45 | H19: 50
B20: Enter the number of Managers and/or Supervisors currently working in the Credentialing Office: | C20: 2
B21: Enter the number of Administrative Staff currently working in the Credentialing Office: | C21: 2
B22: Enter the number of Badge Processing Staff currently working in the Credentialing Office: | C22: 5

Sheet Instructions
H8: ='Quick Start'!C6 -> Version 2.0
Y14: Input Last 6 Months
Y15: Forecast next 6 months
D66: This Staff Forecasting Tool was developed by The JW Group, Inc. under the Safe Skies PARAS 0036 Airport Credentialing Toolkit contract. The tool is intended to supply general information only, not specific professional or personal advice, and is not intended to be used as a substitute for any kind of professional advice. Use this tool either in whole or in part as a basis and guide for staff forecasting.

Sheet Instructions & Input (hidden)
A1: {Not for Public View}
D10: ENTER AIRPORT HUB SIZE
D11: Select from drop-down menu | E11: ='Quick Start'!C9 -> Medium
D12: ENTER MONTH AND YEAR TO START FORECAST
D13: Month and Year (MMM-YYYY Format) | E13: ='Quick Start'!C10 -> 2022-05-01
D15: ENTER 6 MONTHS OF HISTORICAL DATA: | K15: Forecast
E16: =DATE(YEAR(F16),MONTH(F16)-1,DAY(F16)) -> 2021-11-01 | F16: 2021-12-01 | G16: 2022-01-01 | H16: 2022-02-01 | I16: 2022-03-01 | J16: 2022-04-01 | K16: =E13 -> 2022-05-01 | L16: =DATE(YEAR(K16),MONTH(K16)+1,DAY(K16)) -> 2022-06-01 | M16: 2022-07-01 | N16: 2022-08-01 | O16: 2022-09-01 | P16: 2022-10-01
D17: Supervisor | T17: Input Last 6 Months
D18: Admin | T18: Forecast next 6 months
D19: Applications/Renewal Staff
D20: Training Staff
D21: Reporting
D22: Total FTE
D23: +/-
D24: Variable Constraints
D25: New Contract/Vendor (#EMPL) | N25: 50 | O25: 50 | P25: 50
D26: Seasonality (+/- # EMP) | K26: 400 | L26: 300 | M26: 100 | N26: 0 | O26: 0 | P26: 0
D29: HISTORICAL DATA - INPUTS
D30: Total # Badges | E30: =F30-F31+F33 -> 14805 | F30: 14845 | G30: 14875 | H30: 14895 | I30: =J30-J31+J33 -> 14950 | J30: ='Quick Start'!C11 -> 15000 | K30: ='Dynamic Charts'!C25 -> 15017.28984 | L30: ='Dynamic Charts'!C26 -> 15061.0035 | M30: ='Dynamic Charts'!C27 -> 15104.71716 | N30: ='Dynamic Charts'!C28 -> 15148.43082 | O30: ='Dynamic Charts'!C29 -> 15192.14449 | P30: ='Dynamic Charts'!C30 -> 15235.85815
D31: Total # New Applicants | E31: ='Quick Start'!C13 -> 100 | F31: ='Quick Start'!D13 -> 80 | G31: ='Quick Start'!E13 -> 60 | H31: ='Quick Start'!F13 -> 40 | I31: ='Quick Start'!G13 -> 100 | J31: ='Quick Start'!H13 -> 100
D32: Total # Renewals | E32: ='Quick Start'!C15 -> 150 | F32: ='Quick Start'!D15 -> 200 | G32: ='Quick Start'!E15 -> 175 | H32: ='Quick Start'!F15 -> 80 | I32: ='Quick Start'!G15 -> 100 | J32: ='Quick Start'!H15 -> 110
D33: Total # Terminated/Expired Badges | E33: ='Quick Start'!C19 -> 50 | F33: ='Quick Start'!D19 -> 40 | G33: ='Quick Start'!E19 -> 30 | H33: ='Quick Start'!F19 -> 20 | I33: ='Quick Start'!G19 -> 45 | J33: ='Quick Start'!H19 -> 50
D34: Cumlative Badges | E34: =E30-E31+E33 -> 14755 | F34: 14805 | G34: 14845 | H34: 14875 | I34: 14895 | J34: =J30 -> 15000
D35: Actual Staff on Hand | J35: =E48 -> 9
D36: Forecasted Staff | K36: ='Dynamic Charts'!E69 -> 9.1 | L36: ='Dynamic Charts'!E70 -> 9.1 | M36: ='Dynamic Charts'!E71 -> 9.1 | N36: ='Dynamic Charts'!E72 -> 9.2 | O36: ='Dynamic Charts'!E73 -> 9.2 | P36: ='Dynamic Charts'!E74 -> 9.2
D37: #Badges Processed per Month | E37: =SUM(E31:E32) -> 250 | F37: =SUM(F31:F32) -> 280 | G37: 235 | H37: 120 | I37: 200 | J37: 210
D38: Enter Temporary or Unplanned Badge Demand within Next 6 Months:
E39: =DATE(YEAR(K16),MONTH(K16),DAY(K16)) -> 2022-05-01 | F39: =DATE(YEAR(L16),MONTH(L16),DAY(L16)) -> 2022-06-01 | G39: 2022-07-01 | H39: 2022-08-01 | I39: 2022-09-01 | J39: 2022-10-01
D40: Total Monthly Unplanned New Badge Demand* | E40: ='Quick Start'!C17 -> 0 | F40: ='Quick Start'!D17 -> 0 | G40: ='Quick Start'!E17 -> 0 | H40: ='Quick Start'!F17 -> 0 | I40: 0 | J40: 0
D41: * such as new tenants, capital projects,etc.
D43: EXISTING POSITIONS TODAY (INPUT)
D44: CURRENT STAFFING (Provide Input) | E44: QTY
D45: Manager/Supervisor | E45: ='Quick Start'!C20 -> 2
D46: Admin | E46: ='Quick Start'!C21 -> 2
D47: Badge Processing Staff | E47: ='Quick Start'!C22 -> 5
D48: TOTAL CURRENT STAFFING | E48: =SUM(E45:E47) -> 9

Sheet Calculations
K3: =Instructions!H8 -> Version 2.0
G12: ENTER AIRPORT HUB SIZE
D13: LEGEND: | G13: Select from drop-down menu | H13: Large
G14: ENTER MONTH AND YEAR TO START FORECAST & SELECT FORECAST PERIOD
E15: Auto generated | G15: Month and Year (MMM-YYYY Format) | H15: ='Instructions & Input'!E13 -> 2022-05-01
G18: PRIOR 6 MONTH OF HISTORICAL DATA PROVIDED | N18: Forecast
H19: =DATE(YEAR(I19),MONTH(I19)-1,DAY(I19)) -> 2021-11-01 | I19: 2021-12-01 | J19: 2022-01-01 | K19: 2022-02-01 | L19: 2022-03-01 | M19: =DATE(YEAR(N19),MONTH(N19)-1,DAY(N19)) -> 2022-04-01 | N19: =H15 -> 2022-05-01 | O19: =DATE(YEAR(N19),MONTH(N19)+1,DAY(N19)) -> 2022-06-01 | P19: 2022-07-01 | Q19: 2022-08-01 | R19: 2022-09-01 | S19: 2022-10-01
G20: Supervisor | W20: Input Last 6 Months
G21: Admin | W21: Forecast next 6 months
G22: Applications/Renewal Staff
G23: Training Staff
G24: Reporting
G25: Total FTE
G26: +/-
G27: Variable Constraints
G28: New Contract/Vendor (#EMPL) | Q28: 50 | R28: 50 | S28: 50
G29: Seasonality (+/- # EMP) | N29: 400 | O29: 300 | P29: 100 | Q29: 0 | R29: 0 | S29: 0
G32: Historical Metrics Data
G33: Total # Badges (Reduced to include # Terminated/Expired badges) | H33: ='Instructions & Input'!E34 -> 14755 | I33: ='Instructions & Input'!F34 -> 14805 | J33: ='Instructions & Input'!G34 -> 14845 | K33: ='Instructions & Input'!H34 -> 14875 | L33: ='Instructions & Input'!I34 -> 14895 | M33: ='Instructions & Input'!J34 -> 15000 | N33: ='Dynamic Charts'!C25 -> 15017.28984 | O33: ='Dynamic Charts'!C26 -> 15061.0035 | P33: ='Dynamic Charts'!C27 -> 15104.71716 | Q33: ='Dynamic Charts'!C28 -> 15148.43082 | R33: ='Dynamic Charts'!C29 -> 15192.14449 | S33: ='Dynamic Charts'!C30 -> 15235.85815
G34: Total # New Applicants | H34: ='Instructions & Input'!E31 -> 100 | I34: ='Instructions & Input'!F31 -> 80 | J34: ='Instructions & Input'!G31 -> 60 | K34: ='Instructions & Input'!H31 -> 40 | L34: ='Instructions & Input'!I31 -> 100 | M34: ='Instructions & Input'!J31 -> 100
G35: Total # Renewals | H35: ='Instructions & Input'!E32 -> 150 | I35: ='Instructions & Input'!F32 -> 200 | J35: ='Instructions & Input'!G32 -> 175 | K35: ='Instructions & Input'!H32 -> 80 | L35: ='Instructions & Input'!I32 -> 100 | M35: ='Instructions & Input'!J32 -> 110
G36: Cumlative Badges | H36: =H33 -> 14755 | I36: =I33 -> 14805 | J36: =J33 -> 14845 | K36: =K33 -> 14875 | L36: 14895 | M36: =M33 -> 15000
G37: Optional: Short-Term Badge Enrollment Demand | N37: ='Quick Start'!C17 -> 0 | O37: ='Quick Start'!D17 -> 0 | P37: ='Quick Start'!E17 -> 0 | Q37: ='Quick Start'!F17 -> 0 | R37: ='Quick Start'!G17 -> 0 | S37: ='Quick Start'!H17 -> 0
G38: Actual Staff on Hand | M38: =H47 -> 9
G39: Forecasted Staff | N39: ='Dynamic Charts'!E69 -> 9.1 | O39: ='Dynamic Charts'!E70 -> 9.1 | P39: ='Dynamic Charts'!E71 -> 9.1 | Q39: ='Dynamic Charts'!E72 -> 9.2 | R39: ='Dynamic Charts'!E73 -> 9.2 | S39: ='Dynamic Charts'!E74 -> 9.2
G40: # Badges Processed per Month | H40: =SUM(H34:H35) -> 250 | I40: =SUM(I34:I35) -> 280 | J40: 235 | K40: 120 | L40: 200 | M40: 210
G42: EXISTING POSITIONS TODAY (INPUT)
G43: Positions Filled (Provided Input) | H43: QTY
G44: Supervisor (Overhead) | H44: ='Instructions & Input'!E45 -> 2
G45: Admin(Overhead) | H45: ='Instructions & Input'!E46 -> 2
G46: Badge Processing Staff | H46: ='Instructions & Input'!E47 -> 5
G47: TOTAL FTE | H47: =SUM(H44:H46) -> 9
N48: Date | O48: # Badges | P48: Staffing
G49: Historical Last 6 month average (Automatic) | N49: ='Dynamic Charts'!A63 -> 2021-11-01 | O49: ='Dynamic Charts'!B63 -> 14755 | P49: ='Dynamic Charts'!E63:E74 -> 9
G50: Monthly # New Applicants + # Renewals | H50: =ROUND(AVERAGE(H40:M40),0) -> 216 | N50: ='Dynamic Charts'!A64 -> 2021-12-01 | O50: ='Dynamic Charts'!B64 -> 14805 | P50: 9
G51: Monthly Demand per Badge Population % | H51: =H50/AVERAGE(H33:M33) -> 0.01453322119 | N51: ='Dynamic Charts'!A65 -> 2022-01-01 | O51: ='Dynamic Charts'!B65 -> 14845 | P51: 9
G52: Monthly # Badges Processed Per Employee | H52: =ROUND(H50/H47,0) -> 24 | N52: ='Dynamic Charts'!A66 -> 2022-02-01 | O52: ='Dynamic Charts'!B66 -> 14875 | P52: 9
N53: ='Dynamic Charts'!A67 -> 2022-03-01 | O53: ='Dynamic Charts'!B67 -> 14895 | P53: 9
G54: Monthly # Badges Processed Per Employee | H54: =_xlfn.IFS('Instructions & Input'!E11="Large", 175,'Instructions & Input'!E11="Medium",87,'Instructions & Input'!E11="Small",76) -> 87 | N54: ='Dynamic Charts'!A68 -> 2022-04-01 | O54: ='Dynamic Charts'!B68 -> 15000 | P54: 9
N55: ='Dynamic Charts'!A69 -> 2022-05-01 | O55: ='Dynamic Charts'!B69 -> 15017.28984 | P55: 9.1
N56: ='Dynamic Charts'!A70 -> 2022-06-01 | O56: ='Dynamic Charts'!B70 -> 15061.0035 | P56: 9.1
N57: ='Dynamic Charts'!A71 -> 2022-07-01 | O57: ='Dynamic Charts'!B71 -> 15104.71716 | P57: 9.1
N58: ='Dynamic Charts'!A72 -> 2022-08-01 | O58: ='Dynamic Charts'!B72 -> 15148.43082 | P58: 9.2
N59: ='Dynamic Charts'!A73 -> 2022-09-01 | O59: ='Dynamic Charts'!B73 -> 15192.14449 | P59: 9.2
N60: ='Dynamic Charts'!A74 -> 2022-10-01 | O60: ='Dynamic Charts'!B74 -> 15235.85815 | P60: 9.2
G100: FORMATTED INPUT DATA SET FOR FORECAST (Automatic)
G101: DATE | H101: # Badges | I101: # Forecast Badges
G102: ='Forecast 6 months'!A35 -> 2021-11-01 | H102: =H36 -> 14755
G103: ='Forecast 6 months'!A36 -> 2021-12-01 | H103: =I36 -> 14805
G104: ='Forecast 6 months'!A37 -> 2022-01-01 | H104: =J36 -> 14845
G105: ='Forecast 6 months'!A38 -> 2022-02-01 | H105: =K36 -> 14875
G106: ='Forecast 6 months'!A39 -> 2022-03-01 | H106: =L36 -> 14895
G107: ='Forecast 6 months'!A40 -> 2022-04-01 | H107: =M36 -> 15000 | I107: =H107 -> 15000
G108: ='Forecast 6 months'!A41 -> 2022-05-01
G109: ='Forecast 6 months'!A42 -> 2022-06-01
G110: ='Forecast 6 months'!A43 -> 2022-07-01
G111: ='Forecast 6 months'!A44 -> 2022-08-01
G112: ='Forecast 6 months'!A45 -> 2022-09-01
G113: ='Forecast 6 months'!A46 -> 2022-10-01
G115: GENERATED MONTHLY STAFF FORECAST
G116: DATE | H116: ='Forecast 6 months'!B34 -> # Badges | I116: ='Forecast 6 months'!C34 -> #Staff
G117: ='Forecast 6 months'!A35 -> 2021-11-01 | H117: ='Forecast 6 months'!B35 -> 14755 | I117: ='Forecast 6 months'!C35 -> 9
G118: ='Forecast 6 months'!A36 -> 2021-12-01 | H118: ='Forecast 6 months'!B36 -> 14805 | I118: ='Forecast 6 months'!C36 -> 9
G119: ='Forecast 6 months'!A37 -> 2022-01-01 | H119: ='Forecast 6 months'!B37 -> 14845 | I119: ='Forecast 6 months'!C37 -> 9
G120: ='Forecast 6 months'!A38 -> 2022-02-01 | H120: ='Forecast 6 months'!B38 -> 14875 | I120: ='Forecast 6 months'!C38 -> 9
G121: ='Forecast 6 months'!A39 -> 2022-03-01 | H121: ='Forecast 6 months'!B39 -> 14895 | I121: ='Forecast 6 months'!C39 -> 9
G122: ='Forecast 6 months'!A40 -> 2022-04-01 | H122: ='Forecast 6 months'!B40 -> 15000 | I122: ='Forecast 6 months'!C40 -> 9
G123: ='Forecast 6 months'!A41 -> 2022-05-01 | H123: ='Forecast 6 months'!B41 -> 15017.28984 | I123: ='Forecast 6 months'!C41 -> 0
G124: ='Forecast 6 months'!A42 -> 2022-06-01 | H124: ='Forecast 6 months'!B42 -> 15061.0035 | I124: ='Forecast 6 months'!C42 -> 0
G125: ='Forecast 6 months'!A43 -> 2022-07-01 | H125: ='Forecast 6 months'!B43 -> 15104.71716 | I125: ='Forecast 6 months'!C43 -> 0
G126: ='Forecast 6 months'!A44 -> 2022-08-01 | H126: ='Forecast 6 months'!B44 -> 15148.43082 | I126: ='Forecast 6 months'!C44 -> 0
G127: ='Forecast 6 months'!A45 -> 2022-09-01 | H127: ='Forecast 6 months'!B45 -> 15192.14449 | I127: ='Forecast 6 months'!C45 -> 0
G128: ='Forecast 6 months'!A46 -> 2022-10-01 | H128: ='Forecast 6 months'!B46 -> 15235.85815 | I128: ='Forecast 6 months'!C46 -> 0

Sheet Dashboard
L4: =Calculations!K3 -> Version 2.0
V32: ='Dynamic Charts'!Q151 -> 2
R43: 1
K128: 1

Sheet Dynamic Charts (hidden)
D12: DO NOT EDIT - AUTOMATED FORECASTING CHART DATA
A13: Baseline Months to Forecast
A14: 6
A16: TOTAL NEW BADGES FORECAST CALCULATION:
A18: Timeline | B18: Actual | C18: Forecast | D18: Minimum | E18: Maximum Requirement
A19: =Calculations!H19 -> 2021-11-01 | B19: =Calculations!H33 -> 14755
A20: =DATE(YEAR(A19),MONTH(A19)+1,DAY(A19)) -> 2021-12-01 | B20: =Calculations!I33 -> 14805
A21: =DATE(YEAR(A20),MONTH(A20)+1,DAY(A20)) -> 2022-01-01 | B21: =Calculations!J33 -> 14845
A22: 2022-02-01 | B22: =Calculations!K33 -> 14875
A23: 2022-03-01 | B23: =Calculations!L33 -> 14895
A24: 2022-04-01 | B24: =Calculations!M33 -> 15000 | C24: =Table13[[#This Row],[Actual]] -> 15000 | D24: =Table13[[#This Row],[Actual]] -> 15000 | E24: =Table13[[#This Row],[Actual]] -> 15000
A25: 2022-05-01 | C25: =_xlfn.FORECAST.ETS(A25,$B$19:$B$24,$A$19:$A$24,1,1)+'Instructions & Input'!E40 -> 15017.28984 | D25: ='Forecast 6 months'!D24 -> 14980.70259 | E25: ='Forecast 6 months'!E24 -> 15053.87709
A26: 2022-06-01 | C26: =_xlfn.FORECAST.ETS(A26,$B$19:$B$24,$A$19:$A$24,1,1)+'Instructions & Input'!F40 -> 15061.0035 | D26: ='Forecast 6 months'!D25 -> 15024.41608 | E26: ='Forecast 6 months'!E25 -> 15097.59091
A27: 2022-07-01 | C27: =_xlfn.FORECAST.ETS(A27,$B$19:$B$24,$A$19:$A$24,1,1)+'Instructions & Input'!G40 -> 15104.71716 | D27: ='Forecast 6 months'!D26 -> 15068.12945 | E27: ='Forecast 6 months'!E26 -> 15141.30487
A28: 2022-08-01 | C28: =_xlfn.FORECAST.ETS(A28,$B$19:$B$24,$A$19:$A$24,1,1)+'Instructions & Input'!H40 -> 15148.43082 | D28: ='Forecast 6 months'!D27 -> 15111.84266 | E28: ='Forecast 6 months'!E27 -> 15185.01899
A29: 2022-09-01 | C29: =_xlfn.FORECAST.ETS(A29,$B$19:$B$24,$A$19:$A$24,1,1)+'Instructions & Input'!I40 -> 15192.14449 | D29: ='Forecast 6 months'!D28 -> 15155.55566 | E29: ='Forecast 6 months'!E28 -> 15228.73331
A30: 2022-10-01 | C30: =_xlfn.FORECAST.ETS(A30,$B$19:$B$24,$A$19:$A$24,1,1)+'Instructions & Input'!J40 -> 15235.85815 | D30: ='Forecast 6 months'!D29 -> 15199.26843 | E30: ='Forecast 6 months'!E29 -> 15272.44787
F33: Timeline | G33: Actual | H33: Forecast | I33: Minimum Forecast | J33: Maximum Forecast
F34: =A19 -> 2021-11-01 | G34: =B19 -> 14755
F35: =A20 -> 2021-12-01 | G35: =B20 -> 14805
F36: 2022-01-01 | G36: 14845
F37: 2022-02-01 | G37: 14875
F38: 2022-03-01 | G38: 14895
F39: 2022-04-01 | G39: 15000 | H39: =B24 -> 15000 | I39: =B24 -> 15000 | J39: =B24 -> 15000
F40: 2022-05-01 | H40: =C25 -> 15017.28984 | I40: 14980.70259 | J40: 15053.87709
F41: 2022-06-01 | H41: 15061.0035 | I41: 15024.41608 | J41: 15097.59091
F42: 2022-07-01 | H42: 15104.71716 | I42: 15068.12945 | J42: 15141.30487
F43: =IF($A$14=6,A28,NA()) -> 2022-08-01 | H43: =IF($V$51=2,C28,NA()) -> 15148.43082 | I43: =IF($V$51=2,D28,NA()) -> 15111.84266 | J43: =IF($V$51=2,E28,NA()) -> 15185.01899
F44: =IF($A$14=6,A29,NA()) -> 2022-09-01 | H44: =IF($V$51=2,C29,NA()) -> 15192.14449 | I44: =IF($V$51=2,D29,NA()) -> 15155.55566 | J44: =IF($V$51=2,E29,NA()) -> 15228.73331
F45: =IF($A$14=6,A30,NA()) -> 2022-10-01 | H45: 15235.85815 | I45: 15199.26843 | J45: 15272.44787
V51: 2
A58: STAFF FORECAST CALCULATION:
E60: Based on Historical Inputs Provided
A61: # of Badges Processed/Staff Member: | E61: =Calculations!H52 -> 24
A62: DATE | B62: # Badges | C62: #Staff | D62: Capacity | E62: Staff
A63: =A19 -> 2021-11-01 | B63: =B19 -> 14755 | C63: =Calculations!$H$47 -> 9 | D63: =C63*$E$61 -> 216 | E63: =C63 -> 9
A64: =DATE(YEAR(A63),MONTH(A63)+1,DAY(A63)) -> 2021-12-01 | B64: =B20 -> 14805 | C64: =Calculations!$H$47 -> 9 | D64: =C64*$E$61 -> 216 | E64: =C64 -> 9
A65: =DATE(YEAR(A64),MONTH(A64)+1,DAY(A64)) -> 2022-01-01 | B65: =B21 -> 14845 | C65: =Calculations!$H$47 -> 9 | D65: 216 | E65: 9
A66: 2022-02-01 | B66: =B22 -> 14875 | C66: =Calculations!$H$47 -> 9 | D66: 216 | E66: 9
A67: 2022-03-01 | B67: =B23 -> 14895 | C67: =Calculations!$H$47 -> 9 | D67: 216 | E67: 9
A68: 2022-04-01 | B68: =B24 -> 15000 | C68: =Calculations!$H$47 -> 9 | D68: 216 | E68: 9
A69: 2022-05-01 | B69: =C25 -> 15017.28984 | D69: ='Forecast 6 months'!$D$41 -> 218.2495949 | E69: ='Forecast 6 months'!E41 -> 9.1
A70: 2022-06-01 | B70: 15061.0035 | D70: ='Forecast 6 months'!D42 -> 218.8848953 | E70: ='Forecast 6 months'!E42 -> 9.1
A71: 2022-07-01 | B71: 15104.71716 | D71: ='Forecast 6 months'!D43 -> 219.5201956 | E71: ='Forecast 6 months'!E43 -> 9.1
A72: 2022-08-01 | B72: 15148.43082 | D72: ='Forecast 6 months'!D44 -> 220.1554959 | E72: ='Forecast 6 months'!E44 -> 9.2
A73: 2022-09-01 | B73: 15192.14449 | D73: ='Forecast 6 months'!D45 -> 220.7907962 | E73: ='Forecast 6 months'!E45 -> 9.2
A74: 2022-10-01 | B74: 15235.85815 | D74: ='Forecast 6 months'!D46 -> 221.4260965 | E74: ='Forecast 6 months'!E46 -> 9.2
A90: NEW APPLICANTS
A91: Timeline | B91: Actual | C91: Forecast | D91: Lower Confidence Bound | E91: Upper Confidence Bound
A92: =Calculations!H19 -> 2021-11-01 | B92: =Calculations!H34 -> 100
A93: =DATE(YEAR(A92),MONTH(A92)+1,DAY(A92)) -> 2021-12-01 | B93: =Calculations!I34 -> 80
A94: =DATE(YEAR(A93),MONTH(A93)+1,DAY(A93)) -> 2022-01-01 | B94: =Calculations!J34 -> 60
A95: 2022-02-01 | B95: =Calculations!K34 -> 40
A96: 2022-03-01 | B96: =Calculations!L34 -> 100
A97: 2022-04-01 | B97: =Calculations!M34 -> 100 | C97: =Table154[[#This Row],[Actual]] -> 100 | D97: =Table154[[#This Row],[Actual]] -> 100 | E97: =Table154[[#This Row],[Actual]] -> 100
A98: 2022-05-01 | C98: =_xlfn.FORECAST.ETS(A98,$B$92:$B$97,$A$92:$A$97,1,1) -> 103.3901719 | D98: =C98-_xlfn.FORECAST.ETS.CONFINT(A98,$B$19:$B$24,$A$19:$A$24,0.95,1,1) -> 66.80292136 | E98: =C98+_xlfn.FORECAST.ETS.CONFINT(A98,$B$19:$B$24,$A$19:$A$24,0.95,1,1) -> 139.9774223
A99: 2022-06-01 | C99: =_xlfn.FORECAST.ETS(A99,$B$92:$B$97,$A$92:$A$97,1,1) -> 106.9620416 | D99: 70.37462642 | E99: 143.5494567
A100: 2022-07-01 | C100: 110.5339113 | D100: 73.94620342 | E100: 147.1216191
A101: 2022-08-01 | C101: 114.105781 | D101: 77.51761579 | E101: 150.6939461
A102: 2022-09-01 | C102: 117.6776507 | D102: 81.08882694 | E102: 154.2664744
A103: 2022-10-01 | C103: 121.2495204 | D103: 84.6598003 | E103: 157.8392404
A105: RENEWALS
A106: Timeline | B106: Actual | C106: Forecast | D106: Lower Confidence Bound | E106: Upper Confidence Bound
A107: =Calculations!H19 -> 2021-11-01 | B107: =Calculations!H35 -> 150
A108: =DATE(YEAR(A107),MONTH(A107)+1,DAY(A107)) -> 2021-12-01 | B108: =Calculations!I35 -> 200
A109: =DATE(YEAR(A108),MONTH(A108)+1,DAY(A108)) -> 2022-01-01 | B109: =Calculations!J35 -> 175
A110: 2022-02-01 | B110: =Calculations!K35 -> 80
A111: 2022-03-01 | B111: =Calculations!L35 -> 100
A112: 2022-04-01 | B112: =Calculations!M35 -> 110 | C112: =Table1567[[#This Row],[Actual]] -> 110 | D112: =Table1567[[#This Row],[Actual]] -> 110 | E112: =Table1567[[#This Row],[Actual]] -> 110
A113: 2022-05-01 | C113: =_xlfn.FORECAST.ETS(A113,$B$107:$B$112,$A$107:$A$112,1,1) -> 61.80201467 | D113: =C113-_xlfn.FORECAST.ETS.CONFINT(A113,$B$19:$B$24,$A$19:$A$24,0.95,1,1) -> 25.21476418 | E113: =C113+_xlfn.FORECAST.ETS.CONFINT(A113,$B$19:$B$24,$A$19:$A$24,0.95,1,1) -> 98.38926516
A114: 2022-06-01 | C114: =_xlfn.FORECAST.ETS(A114,$B$107:$B$112,$A$107:$A$112,1,1) -> 41.89244478 | D114: 5.305029648 | E114: 78.47985992
A115: 2022-07-01 | C115: 21.9828749 | D115: -14.60483293 | E115: 58.57058273
A116: 2022-08-01 | C116: 2.073305011 | D116: -34.51486015 | E116: 38.66147017
A117: 2022-09-01 | C117: -17.83626488 | D117: -54.42508859 | E117: 18.75255884
A118: 2022-10-01 | C118: -37.74583476 | D118: -74.33555481 | E118: -1.156114712
F120: 2
F121: DATE | G121: # Badges | H121: #Staff | I121: Capacity | J121: Staff
F122: =A63 -> 2021-11-01 | G122: =B63 -> 14755 | H122: =Calculations!$H$47 -> 9 | I122: =H122*$E$61 -> 216 | J122: =H122 -> 9
F123: =DATE(YEAR(F122),MONTH(F122)+1,DAY(F122)) -> 2021-12-01 | G123: =B64 -> 14805 | H123: =Calculations!$H$47 -> 9 | I123: =H123*$E$61 -> 216 | J123: =H123 -> 9
F124: =DATE(YEAR(F123),MONTH(F123)+1,DAY(F123)) -> 2022-01-01 | G124: 14845 | H124: =Calculations!$H$47 -> 9 | I124: 216 | J124: 9
F125: 2022-02-01 | G125: 14875 | H125: =Calculations!$H$47 -> 9 | I125: 216 | J125: 9
F126: 2022-03-01 | G126: 14895 | H126: =Calculations!$H$47 -> 9 | I126: 216 | J126: 9
E127: 1 | F127: 2022-04-01 | G127: 15000 | H127: =Calculations!$H$47 -> 9 | I127: 216 | J127: 9
F128: 2022-05-01 | G128: 15017.28984 | I128: ='Forecast 6 months'!$D$41 -> 218.2495949 | J128: ='Forecast 6 months'!E41 -> 9.1
F129: 2022-06-01 | G129: 15061.0035 | I129: ='Forecast 6 months'!$D$42 -> 218.8848953 | J129: ='Forecast 6 months'!E42 -> 9.1
F130: 2022-07-01 | G130: 15104.71716 | I130: ='Forecast 6 months'!$D$43 -> 219.5201956 | J130: ='Forecast 6 months'!E43 -> 9.1
F131: =IF($F$120=2,A72,NA()) -> 2022-08-01 | G131: 15148.43082 | I131: =IF($F$120=2,'Forecast 6 months'!D44, NA()) -> 220.1554959 | J131: =IF($F$120=2,'Forecast 6 months'!E44, NA()) -> 9.2
F132: =IF($F$120=2,A73,NA()) -> 2022-09-01 | G132: 15192.14449 | I132: =IF($F$120=2,'Forecast 6 months'!D45, NA()) -> 220.7907962 | J132: =IF($F$120=2,'Forecast 6 months'!E45, NA()) -> 9.2
F133: 2022-10-01 | G133: 15235.85815 | I133: =IF($F$120=2,'Forecast 6 months'!D46, NA()) -> 221.4260965 | J133: =IF($F$120=2,'Forecast 6 months'!E46, NA()) -> 9.2
A136: 1
A137: =CHOOSE(A136,"Forecast", "Minimum", "Maximum") -> Forecast
A138: formatted for dynamic chart
A139: Timeline | B139: Actual | C139: Forecast | D139: Minimum | E139: Maximum | H139: Timeline | I139: Forecast | J139: Minimum Forecast | K139: Maximum Forecast | M139: Timeline | N139: Forecast | O139: Minimum Forecast | P139: Maximum Forecast
A140: =Calculations!H19 -> 2021-11-01 | B140: =B19 -> 14755 | C140: =Table138[[#This Row],[Actual]] -> 14755 | D140: =Table138[[#This Row],[Forecast]] -> 14755 | E140: =Table138[[#This Row],[Minimum]] -> 14755 | F140: Date | H140: =Table138[[#This Row],[Timeline]] -> 2021-11-01 | I140: =IF($A$136=1,Table138[[#This Row],[Forecast]],NA()) -> 14755 | J140: =IF($A$136=2,Table138[[#This Row],[Minimum]],NA()) ->  | K140: =IF($A$136=3,Table138[[#This Row],[Maximum]],NA()) ->  | M140: =Table138[[#This Row],[Timeline]] -> 2021-11-01 | N140: =IF($A$136=1,Table138[[#This Row],[Forecast]],NA()) -> 14755 | O140: =IF($A$136=2,Table138[[#This Row],[Minimum]],NA()) ->  | P140: =IF($A$136=3,Table138[[#This Row],[Maximum]],NA()) -> 
A141: =DATE(YEAR(A140),MONTH(A140)+1,DAY(A140)) -> 2021-12-01 | B141: =B20 -> 14805 | C141: =Table138[[#This Row],[Actual]] -> 14805 | D141: =Table138[[#This Row],[Forecast]] -> 14805 | E141: =Table138[[#This Row],[Minimum]] -> 14805 | H141: =Table138[[#This Row],[Timeline]] -> 2021-12-01 | I141: =IF($A$136=1,Table138[[#This Row],[Actual]],NA()) -> 14805 | J141: =IF($A$136=2,Table138[[#This Row],[Minimum]],NA()) ->  | K141: =IF($A$136=3,Table138[[#This Row],[Maximum]],NA()) ->  | M141: =Table138[[#This Row],[Timeline]] -> 2021-12-01 | N141: =IF($A$136=1,Table138[[#This Row],[Actual]],NA()) -> 14805 | O141: =IF($A$136=2,Table138[[#This Row],[Minimum]],NA()) ->  | P141: =IF($A$136=3,Table138[[#This Row],[Maximum]],NA()) -> 
A142: =DATE(YEAR(A141),MONTH(A141)+1,DAY(A141)) -> 2022-01-01 | B142: 14845 | C142: =Table138[[#This Row],[Actual]] -> 14845 | D142: =Table138[[#This Row],[Forecast]] -> 14845 | E142: =Table138[[#This Row],[Minimum]] -> 14845 | H142: =Table138[[#This Row],[Timeline]] -> 2022-01-01 | I142: =IF($A$136=1,Table138[[#This Row],[Actual]],NA()) -> 14845 | J142: =IF($A$136=2,Table138[[#This Row],[Minimum]],NA()) ->  | K142: =IF($A$136=3,Table138[[#This Row],[Maximum]],NA()) ->  | M142: =Table138[[#This Row],[Timeline]] -> 2022-01-01 | N142: =IF($A$136=1,Table138[[#This Row],[Actual]],NA()) -> 14845 | O142: =IF($A$136=2,Table138[[#This Row],[Minimum]],NA()) ->  | P142: =IF($A$136=3,Table138[[#This Row],[Maximum]],NA()) -> 
A143: 2022-02-01 | B143: 14875 | C143: =Table138[[#This Row],[Actual]] -> 14875 | D143: =Table138[[#This Row],[Forecast]] -> 14875 | E143: =Table138[[#This Row],[Minimum]] -> 14875 | H143: =Table138[[#This Row],[Timeline]] -> 2022-02-01 | I143: =IF($A$136=1,Table138[[#This Row],[Actual]],NA()) -> 14875 | J143: =IF($A$136=2,Table138[[#This Row],[Minimum]],NA()) ->  | K143: =IF($A$136=3,Table138[[#This Row],[Maximum]],NA()) ->  | M143: =Table138[[#This Row],[Timeline]] -> 2022-02-01 | N143: =IF($A$136=1,Table138[[#This Row],[Actual]],NA()) -> 14875 | O143: =IF($A$136=2,Table138[[#This Row],[Minimum]],NA()) ->  | P143: =IF($A$136=3,Table138[[#This Row],[Maximum]],NA()) -> 
A144: 2022-03-01 | B144: 14895 | C144: =Table138[[#This Row],[Actual]] -> 14895 | D144: =Table138[[#This Row],[Forecast]] -> 14895 | E144: =Table138[[#This Row],[Minimum]] -> 14895 | H144: =Table138[[#This Row],[Timeline]] -> 2022-03-01 | I144: =IF($A$136=1,Table138[[#This Row],[Actual]],NA()) -> 14895 | J144: =IF($A$136=2,Table138[[#This Row],[Minimum]],NA()) ->  | K144: =IF($A$136=3,Table138[[#This Row],[Maximum]],NA()) ->  | M144: =Table138[[#This Row],[Timeline]] -> 2022-03-01 | N144: =IF($A$136=1,Table138[[#This Row],[Actual]],NA()) -> 14895 | O144: =IF($A$136=2,Table138[[#This Row],[Minimum]],NA()) ->  | P144: =IF($A$136=3,Table138[[#This Row],[Maximum]],NA()) -> 
A145: 2022-04-01 | B145: 15000 | C145: =Table138[[#This Row],[Actual]] -> 15000 | D145: =Table138[[#This Row],[Actual]] -> 15000 | E145: =Table138[[#This Row],[Actual]] -> 15000 | H145: =Table138[[#This Row],[Timeline]] -> 2022-04-01 | I145: =IF($A$136=1,Table138[[#This Row],[Actual]],NA()) -> 15000 | J145: =IF($A$136=2,Table138[[#This Row],[Minimum]],NA()) ->  | K145: =IF($A$136=3,Table138[[#This Row],[Maximum]],NA()) ->  | M145: =Table138[[#This Row],[Timeline]] -> 2022-04-01 | N145: =IF($A$136=1,Table138[[#This Row],[Actual]],NA()) -> 15000 | O145: =IF($A$136=2,Table138[[#This Row],[Minimum]],NA()) ->  | P145: =IF($A$136=3,Table138[[#This Row],[Maximum]],NA()) -> 
A146: 2022-05-01 | B146: =C25 -> 15017.28984 | C146: =_xlfn.FORECAST.ETS(A146,$B$19:$B$24,$A$19:$A$24,1,1)+Calculations!H58 -> 15017.28984 | D146: ='Forecast 6 months'!D24 -> 14980.70259 | E146: ='Forecast 6 months'!E24 -> 15053.87709 | H146: =Table138[[#This Row],[Timeline]] -> 2022-05-01 | I146: =IF($A$136=1,Table138[[#This Row],[Actual]],NA()) -> 15017.28984 | J146: =IF($A$136=2,Table138[[#This Row],[Minimum]],NA()) ->  | K146: =IF($A$136=3,Table138[[#This Row],[Maximum]],NA()) ->  | M146: =Table138[[#This Row],[Timeline]] -> 2022-05-01 | N146: =IF($A$136=1,Table138[[#This Row],[Actual]],NA()) -> 15017.28984 | O146: =IF($A$136=2,Table138[[#This Row],[Minimum]],NA()) ->  | P146: =IF($A$136=3,Table138[[#This Row],[Maximum]],NA()) -> 
A147: 2022-06-01 | B147: 15061.0035 | C147: =_xlfn.FORECAST.ETS(A147,$B$19:$B$24,$A$19:$A$24,1,1)+Calculations!I58 -> 15061.0035 | D147: ='Forecast 6 months'!D25 -> 15024.41608 | E147: ='Forecast 6 months'!E25 -> 15097.59091 | H147: =Table138[[#This Row],[Timeline]] -> 2022-06-01 | I147: =IF($A$136=1,Table138[[#This Row],[Actual]],NA()) -> 15061.0035 | J147: =IF($A$136=2,Table138[[#This Row],[Minimum]],NA()) ->  | K147: =IF($A$136=3,Table138[[#This Row],[Maximum]],NA()) ->  | M147: =Table138[[#This Row],[Timeline]] -> 2022-06-01 | N147: =IF($A$136=1,Table138[[#This Row],[Actual]],NA()) -> 15061.0035 | O147: =IF($A$136=2,Table138[[#This Row],[Minimum]],NA()) ->  | P147: =IF($A$136=3,Table138[[#This Row],[Maximum]],NA()) -> 
A148: 2022-07-01 | B148: 15104.71716 | C148: =_xlfn.FORECAST.ETS(A148,$B$19:$B$24,$A$19:$A$24,1,1)+Calculations!J58 -> 15104.71716 | D148: ='Forecast 6 months'!D26 -> 15068.12945 | E148: ='Forecast 6 months'!E26 -> 15141.30487 | H148: =Table138[[#This Row],[Timeline]] -> 2022-07-01 | I148: =IF($A$136=1,Table138[[#This Row],[Actual]],NA()) -> 15104.71716 | J148: =IF($A$136=2,Table138[[#This Row],[Minimum]],NA()) ->  | K148: =IF($A$136=3,Table138[[#This Row],[Maximum]],NA()) ->  | M148: =Table138[[#This Row],[Timeline]] -> 2022-07-01 | N148: =IF($A$136=1,Table138[[#This Row],[Actual]],NA()) -> 15104.71716 | O148: =IF($A$136=2,Table138[[#This Row],[Minimum]],NA()) ->  | P148: =IF($A$136=3,Table138[[#This Row],[Maximum]],NA()) -> 
A149: 2022-08-01 | B149: 15148.43082 | C149: =_xlfn.FORECAST.ETS(A149,$B$19:$B$24,$A$19:$A$24,1,1)+Calculations!K58 -> 15148.43082 | D149: ='Forecast 6 months'!D27 -> 15111.84266 | E149: ='Forecast 6 months'!E27 -> 15185.01899 | H149: =Table138[[#This Row],[Timeline]] -> 2022-08-01 | I149: =IF($A$136=1,Table138[[#This Row],[Actual]],NA()) -> 15148.43082 | J149: =IF($A$136=2,Table138[[#This Row],[Minimum]],NA()) ->  | K149: =IF($A$136=3,Table138[[#This Row],[Maximum]],NA()) ->  | M149: =IF($Q$151=2,Table138[[#This Row],[Timeline]],NA()) -> 2022-08-01 | N149: =IF(AND($A$136=1,$Q$151=2),Table138[[#This Row],[Actual]],NA()) -> 15148.43082 | O149: =IF(AND($A$136=2,$Q$151=2),Table138[[#This Row],[Minimum]],NA()) ->  | P149: =IF(AND($A$136=3,$Q$151=2),Table138[[#This Row],[Maximum]],NA()) -> 
A150: 2022-09-01 | B150: 15192.14449 | C150: =_xlfn.FORECAST.ETS(A150,$B$19:$B$24,$A$19:$A$24,1,1)+Calculations!L58 -> 15192.14449 | D150: ='Forecast 6 months'!D28 -> 15155.55566 | E150: ='Forecast 6 months'!E28 -> 15228.73331 | H150: =Table138[[#This Row],[Timeline]] -> 2022-09-01 | I150: =IF($A$136=1,Table138[[#This Row],[Actual]],NA()) -> 15192.14449 | J150: =IF($A$136=2,Table138[[#This Row],[Minimum]],NA()) ->  | K150: =IF($A$136=3,Table138[[#This Row],[Maximum]],NA()) ->  | M150: =IF($Q$151=2,Table138[[#This Row],[Timeline]],NA()) -> 2022-09-01 | N150: =IF(AND($A$136=1,$Q$151=2),Table138[[#This Row],[Actual]],NA()) -> 15192.14449 | O150: =IF(AND($A$136=2,$Q$151=2),Table138[[#This Row],[Minimum]],NA()) ->  | P150: =IF(AND($A$136=3,$Q$151=2),Table138[[#This Row],[Maximum]],NA()) -> 
A151: 2022-10-01 | B151: 15235.85815 | C151: =_xlfn.FORECAST.ETS(A151,$B$19:$B$24,$A$19:$A$24,1,1)+Calculations!M58 -> 15235.85815 | D151: ='Forecast 6 months'!D29 -> 15199.26843 | E151: ='Forecast 6 months'!E29 -> 15272.44787 | H151: =Table138[[#This Row],[Timeline]] -> 2022-10-01 | I151: =IF($A$136=1,Table138[[#This Row],[Actual]],NA()) -> 15235.85815 | J151: =IF($A$136=2,Table138[[#This Row],[Minimum]],NA()) ->  | K151: =IF($A$136=3,Table138[[#This Row],[Maximum]],NA()) ->  | M151: =IF($Q$151=2,Table138[[#This Row],[Timeline]],NA()) -> 2022-10-01 | N151: =IF(AND($A$136=1,$Q$151=2),Table138[[#This Row],[Actual]],NA()) -> 15235.85815 | O151: =IF(AND($A$136=2,$Q$151=2),Table138[[#This Row],[Minimum]],NA()) ->  | P151: =IF(AND($A$136=3,$Q$151=2),Table138[[#This Row],[Maximum]],NA()) ->  | Q151: 2
B154: Dynamic Chart - Badge Forecast
F1206: 0

Sheet Forecast 6 months (hidden)
D12: DO NOT EDIT - AUTOMATED FORECASTING CHART DATA
A16: TOTAL NEW BADGES:
A17: Timeline | B17: Actual | C17: Forecast | D17: Minimum | E17: Maximum Requirement
A18: =Calculations!H19 -> 2021-11-01 | B18: ='Instructions & Input'!E34 -> 14755
A19: =DATE(YEAR(A18),MONTH(A18)+1,DAY(A18)) -> 2021-12-01 | B19: ='Instructions & Input'!F34 -> 14805
A20: =DATE(YEAR(A19),MONTH(A19)+1,DAY(A19)) -> 2022-01-01 | B20: ='Instructions & Input'!G34 -> 14845
A21: 2022-02-01 | B21: ='Instructions & Input'!H34 -> 14875
A22: 2022-03-01 | B22: =Calculations!H106 -> 14895
A23: 2022-04-01 | B23: ='Instructions & Input'!J34 -> 15000 | C23: =Table1[[#This Row],[Actual]] -> 15000 | D23: =Table1[[#This Row],[Actual]] -> 15000 | E23: =Table1[[#This Row],[Actual]] -> 15000
A24: 2022-05-01 | C24: =_xlfn.FORECAST.ETS(A24,$B$18:$B$23,$A$18:$A$23,1,1) -> 15017.28984 | D24: =C24-_xlfn.FORECAST.ETS.CONFINT(A24,$B$18:$B$23,$A$18:$A$23,0.95,1,1)-'Instructions & Input'!E40 -> 14980.70259 | E24: =C24+_xlfn.FORECAST.ETS.CONFINT(A24,$B$18:$B$23,$A$18:$A$23,0.95,1,1)+'Instructions & Input'!E40 -> 15053.87709
A25: 2022-06-01 | C25: =_xlfn.FORECAST.ETS(A25,$B$18:$B$23,$A$18:$A$23,1,1)+'Instructions & Input'!F40 -> 15061.0035 | D25: =C25-_xlfn.FORECAST.ETS.CONFINT(A25,$B$18:$B$23,$A$18:$A$23,0.95,1,1)-'Instructions & Input'!F40 -> 15024.41608 | E25: =C25+_xlfn.FORECAST.ETS.CONFINT(A25,$B$18:$B$23,$A$18:$A$23,0.95,1,1)+'Instructions & Input'!F40 -> 15097.59091
A26: 2022-07-01 | C26: =_xlfn.FORECAST.ETS(A26,$B$18:$B$23,$A$18:$A$23,1,1)+'Instructions & Input'!G40 -> 15104.71716 | D26: =C26-_xlfn.FORECAST.ETS.CONFINT(A26,$B$18:$B$23,$A$18:$A$23,0.95,1,1)-'Instructions & Input'!G40 -> 15068.12945 | E26: =C26+_xlfn.FORECAST.ETS.CONFINT(A26,$B$18:$B$23,$A$18:$A$23,0.95,1,1)+'Instructions & Input'!G40 -> 15141.30487
A27: 2022-08-01 | C27: =_xlfn.FORECAST.ETS(A27,$B$18:$B$23,$A$18:$A$23,1,1)+'Instructions & Input'!H40 -> 15148.43082 | D27: =C27-_xlfn.FORECAST.ETS.CONFINT(A27,$B$18:$B$23,$A$18:$A$23,0.95,1,1)-'Instructions & Input'!H40 -> 15111.84266 | E27: =C27+_xlfn.FORECAST.ETS.CONFINT(A27,$B$18:$B$23,$A$18:$A$23,0.95,1,1)+'Instructions & Input'!H40 -> 15185.01899
A28: 2022-09-01 | C28: =_xlfn.FORECAST.ETS(A28,$B$18:$B$23,$A$18:$A$23,1,1)+'Instructions & Input'!I40 -> 15192.14449 | D28: =C28-_xlfn.FORECAST.ETS.CONFINT(A28,$B$18:$B$23,$A$18:$A$23,0.95,1,1)-'Instructions & Input'!I40 -> 15155.55566 | E28: =C28+_xlfn.FORECAST.ETS.CONFINT(A28,$B$18:$B$23,$A$18:$A$23,0.95,1,1)+'Instructions & Input'!I40 -> 15228.73331
A29: 2022-10-01 | C29: =_xlfn.FORECAST.ETS(A29,$B$18:$B$23,$A$18:$A$23,1,1)+'Instructions & Input'!J40 -> 15235.85815 | D29: =C29-_xlfn.FORECAST.ETS.CONFINT(A29,$B$18:$B$23,$A$18:$A$23,0.95,1,1)-'Instructions & Input'!J40 -> 15199.26843 | E29: =C29+_xlfn.FORECAST.ETS.CONFINT(A29,$B$18:$B$23,$A$18:$A$23,0.95,1,1)+'Instructions & Input'!J40 -> 15272.44787
E32: Based on Historical Inputs Provided
A33: # of Badges Processed/Staff Member: | E33: =Calculations!H52 -> 24
A34: DATE | B34: # Badges | C34: #Staff | D34: Current Capacity | E34: Forecast Staff
A35: =A18 -> 2021-11-01 | B35: =B18 -> 14755 | C35: =Calculations!$H$47 -> 9 | D35: =$E$33*C35 -> 216 | E35: =D35/$E$33 -> 9
A36: =DATE(YEAR(A35),MONTH(A35)+1,DAY(A35)) -> 2021-12-01 | B36: =B19 -> 14805 | C36: =Calculations!$H$47 -> 9 | D36: =$E$33*C36 -> 216 | E36: =D36/$E$33 -> 9
A37: =DATE(YEAR(A36),MONTH(A36)+1,DAY(A36)) -> 2022-01-01 | B37: =B20 -> 14845 | C37: =Calculations!$H$47 -> 9 | D37: 216 | E37: 9
A38: 2022-02-01 | B38: =B21 -> 14875 | C38: =Calculations!$H$47 -> 9 | D38: 216 | E38: 9
A39: 2022-03-01 | B39: =B22 -> 14895 | C39: =Calculations!$H$47 -> 9 | D39: 216 | E39: 9
A40: 2022-04-01 | B40: =B23 -> 15000 | C40: =Calculations!$H$47 -> 9 | D40: 216 | E40: 9
A41: 2022-05-01 | B41: =C24 -> 15017.28984 | D41: =B41*Calculations!$H$51 -> 218.2495949 | E41: =ROUND(D41/$E$33,1) -> 9.1
A42: 2022-06-01 | B42: 15061.0035 | D42: =B42*Calculations!$H$51 -> 218.8848953 | E42: =ROUND(D42/$E$33,1) -> 9.1
A43: 2022-07-01 | B43: =C26 -> 15104.71716 | D43: =B43*Calculations!$H$51 -> 219.5201956 | E43: 9.1
A44: 2022-08-01 | B44: 15148.43082 | D44: =B44*Calculations!$H$51 -> 220.1554959 | E44: 9.2
A45: 2022-09-01 | B45: 15192.14449 | D45: =B45*Calculations!$H$51 -> 220.7907962 | E45: 9.2
A46: 2022-10-01 | B46: 15235.85815 | D46: =B46*Calculations!$H$51 -> 221.4260965 | E46: 9.2
A60: NEW APPLICANTS
A61: Timeline | B61: Actual | C61: Forecast | D61: Lower Confidence Bound | E61: Upper Confidence Bound
A62: =Calculations!H19 -> 2021-11-01 | B62: =Calculations!H34 -> 100
A63: =DATE(YEAR(A62),MONTH(A62)+1,DAY(A62)) -> 2021-12-01 | B63: =Calculations!I34 -> 80
A64: =DATE(YEAR(A63),MONTH(A63)+1,DAY(A63)) -> 2022-01-01 | B64: =Calculations!J34 -> 60
A65: 2022-02-01 | B65: =Calculations!K34 -> 40
A66: 2022-03-01 | B66: =Calculations!L34 -> 100
A67: 2022-04-01 | B67: =Calculations!M34 -> 100 | C67: =Table15[[#This Row],[Actual]] -> 100 | D67: =Table15[[#This Row],[Actual]] -> 100 | E67: =Table15[[#This Row],[Actual]] -> 100
A68: 2022-05-01 | C68: =_xlfn.FORECAST.ETS(A68,$B$62:$B$67,$A$62:$A$67,1,1) -> 103.3901719 | D68: =C68-_xlfn.FORECAST.ETS.CONFINT(A68,$B$18:$B$23,$A$18:$A$23,0.95,1,1) -> 66.80292136 | E68: =C68+_xlfn.FORECAST.ETS.CONFINT(A68,$B$18:$B$23,$A$18:$A$23,0.95,1,1) -> 139.9774223
A69: 2022-06-01 | C69: =_xlfn.FORECAST.ETS(A69,$B$62:$B$67,$A$62:$A$67,1,1) -> 106.9620416 | D69: 70.37462642 | E69: 143.5494567
A70: 2022-07-01 | C70: 110.5339113 | D70: 73.94620342 | E70: 147.1216191
A71: 2022-08-01 | C71: 114.105781 | D71: 77.51761579 | E71: 150.6939461
A72: 2022-09-01 | C72: 117.6776507 | D72: 81.08882694 | E72: 154.2664744
A73: 2022-10-01 | C73: 121.2495204 | D73: 84.6598003 | E73: 157.8392404
A75: RENEWALS
A76: Timeline | B76: Actual | C76: Forecast | D76: Lower Confidence Bound | E76: Upper Confidence Bound
A77: =Calculations!H19 -> 2021-11-01 | B77: =Calculations!H35 -> 150
A78: =DATE(YEAR(A77),MONTH(A77)+1,DAY(A77)) -> 2021-12-01 | B78: =Calculations!I35 -> 200
A79: =DATE(YEAR(A78),MONTH(A78)+1,DAY(A78)) -> 2022-01-01 | B79: =Calculations!J35 -> 175
A80: 2022-02-01 | B80: =Calculations!K35 -> 80
A81: 2022-03-01 | B81: =Calculations!L35 -> 100
A82: 2022-04-01 | B82: =Calculations!M35 -> 110 | C82: =Table156[[#This Row],[Actual]] -> 110 | D82: =Table156[[#This Row],[Actual]] -> 110 | E82: =Table156[[#This Row],[Actual]] -> 110
A83: 2022-05-01 | C83: =_xlfn.FORECAST.ETS(A83,$B$77:$B$82,$A$77:$A$82,1,1) -> 61.80201467 | D83: =C83-_xlfn.FORECAST.ETS.CONFINT(A83,$B$18:$B$23,$A$18:$A$23,0.95,1,1) -> 25.21476418 | E83: =C83+_xlfn.FORECAST.ETS.CONFINT(A83,$B$18:$B$23,$A$18:$A$23,0.95,1,1) -> 98.38926516
A84: 2022-06-01 | C84: =_xlfn.FORECAST.ETS(A84,$B$77:$B$82,$A$77:$A$82,1,1) -> 41.89244478 | D84: 5.305029648 | E84: 78.47985992
A85: 2022-07-01 | C85: 21.9828749 | D85: -14.60483293 | E85: 58.57058273
A86: 2022-08-01 | C86: 2.073305011 | D86: -34.51486015 | E86: 38.66147017
A87: 2022-09-01 | C87: -17.83626488 | D87: -54.42508859 | E87: 18.75255884
A88: 2022-10-01 | C88: -37.74583476 | D88: -74.33555481 | E88: -1.156114712

Sheet Forecast 3 months (hidden)
U2: NOT USED BUT KEEP
D12: DO NOT EDIT - AUTOMATED FORECASTING CHART DATA
A16: TOTAL NEW BADGES:
A17: Timeline | B17: Actual | C17: Forecast | D17: Minimum | E17: Maximum Requirement
A18: =Calculations!H19 -> 2021-11-01 | B18: ='Instructions & Input'!E34 -> 14755
A19: =DATE(YEAR(A18),MONTH(A18)+1,DAY(A18)) -> 2021-12-01 | B19: ='Instructions & Input'!F34 -> 14805
A20: =DATE(YEAR(A19),MONTH(A19)+1,DAY(A19)) -> 2022-01-01 | B20: ='Instructions & Input'!G34 -> 14845
A21: 2022-02-01 | B21: ='Instructions & Input'!H34 -> 14875
A22: 2022-03-01 | B22: =Calculations!H106 -> 14895
A23: 2022-04-01 | B23: ='Instructions & Input'!J34 -> 15000 | C23: =Table19[[#This Row],[Actual]] -> 15000 | D23: =Table19[[#This Row],[Actual]] -> 15000 | E23: =Table19[[#This Row],[Actual]] -> 15000
A24: 2022-05-01 | C24: =_xlfn.FORECAST.ETS(A24,$B$18:$B$23,$A$18:$A$23,1,1) -> 15017.28984 | D24: =C24-_xlfn.FORECAST.ETS.CONFINT(A24,$B$18:$B$23,$A$18:$A$23,0.95,1,1) -> 14980.70259 | E24: =C24+_xlfn.FORECAST.ETS.CONFINT(A24,$B$18:$B$23,$A$18:$A$23,0.95,1,1) -> 15053.87709
A25: 2022-06-01 | C25: =_xlfn.FORECAST.ETS(A25,$B$18:$B$23,$A$18:$A$23,1,1) -> 15061.0035 | D25: 15024.41608 | E25: 15097.59091
A26: 2022-07-01 | C26: 15104.71716 | D26: 15068.12945 | E26: 15141.30487
E29: Based on Historical Inputs Provided
A30: # of Badges Processed/Staff Member: | E30: =Calculations!H52 -> 24
A31: DATE | B31: # Badges | C31: #Staff | D31: Current Capacity | E31: Forecast Staff
A32: =A18 -> 2021-11-01 | B32: =B18 -> 14755 | C32: =Calculations!$H$47 -> 9 | D32: =$E$30*C32 -> 216 | E32: =D32/$E$30 -> 9
A33: =DATE(YEAR(A32),MONTH(A32)+1,DAY(A32)) -> 2021-12-01 | B33: =B19 -> 14805 | C33: =Calculations!$H$47 -> 9 | D33: =$E$30*C33 -> 216 | E33: =D33/$E$30 -> 9
A34: =DATE(YEAR(A33),MONTH(A33)+1,DAY(A33)) -> 2022-01-01 | B34: =B20 -> 14845 | C34: =Calculations!$H$47 -> 9 | D34: 216 | E34: 9
A35: 2022-02-01 | B35: =B21 -> 14875 | C35: =Calculations!$H$47 -> 9 | D35: 216 | E35: 9
A36: 2022-03-01 | B36: =B22 -> 14895 | C36: =Calculations!$H$47 -> 9 | D36: 216 | E36: 9
A37: 2022-04-01 | B37: =B23 -> 15000 | C37: =Calculations!$H$47 -> 9 | D37: 216 | E37: 9
A38: 2022-05-01 | B38: =C24 -> 15017.28984 | D38: =B38/12 -> 1251.44082 | E38: =D38/$E$30 -> 52.14336749
A39: 2022-06-01 | B39: =C25 -> 15061.0035 | D39: =B39/12 -> 1255.083625 | E39: =D39/$E$30 -> 52.29515104
A40: 2022-07-01 | B40: =C26 -> 15104.71716 | D40: 1258.72643 | E40: 52.44693459
E41: Option 1 (DEFAULT)
D42: Assumes using largest month in forecast
C43: =MAX(B38:B40) -> 15104.71716 | D43: Max number of Badges in Forecast
C44: =(C43-B32) -> 349.7171611 | D44: Growth of Monthly Badges
C45: =ROUND(C44/E30,0) -> 15 | D45: Increase of staff required
C46: =C32+C45 -> 24 | D46: Total staff required
E47: Option 2 ( Ideal for when there are negative fluctuations during the 6 month forecast)
D48: Assumes using average month in forecast
C49: =ROUND(AVERAGE(B38:B40),0) -> 15061 | D49: Average number of badges
C50: =C49-B32 -> 306 | D50: Growth of Month Badges
C51: =ROUND(C50/E30,0) -> 13 | D51: Increase of staff required
C52: =C32+C51 -> 22 | D52: Total staff required
A54: NEW APPLICANTS
A55: Timeline | B55: Actual | C55: Forecast | D55: Lower Confidence Bound | E55: Upper Confidence Bound
A56: =Calculations!H19 -> 2021-11-01 | B56: =Calculations!H34 -> 100
A57: =DATE(YEAR(A56),MONTH(A56)+1,DAY(A56)) -> 2021-12-01 | B57: =Calculations!I34 -> 80
A58: =DATE(YEAR(A57),MONTH(A57)+1,DAY(A57)) -> 2022-01-01 | B58: =Calculations!J34 -> 60
A59: 2022-02-01 | B59: =Calculations!K34 -> 40
A60: 2022-03-01 | B60: =Calculations!L34 -> 100
A61: 2022-04-01 | B61: =Calculations!M34 -> 100 | C61: =Table1510[[#This Row],[Actual]] -> 100 | D61: =Table1510[[#This Row],[Actual]] -> 100 | E61: =Table1510[[#This Row],[Actual]] -> 100
A62: 2022-05-01 | C62: =_xlfn.FORECAST.ETS(A62,$B$56:$B$61,$A$56:$A$61,1,1) -> 103.3901719 | D62: =C62-_xlfn.FORECAST.ETS.CONFINT(A62,$B$18:$B$23,$A$18:$A$23,0.95,1,1) -> 66.80292136 | E62: =C62+_xlfn.FORECAST.ETS.CONFINT(A62,$B$18:$B$23,$A$18:$A$23,0.95,1,1) -> 139.9774223
A63: 2022-06-01 | C63: =_xlfn.FORECAST.ETS(A63,$B$56:$B$61,$A$56:$A$61,1,1) -> 106.9620416 | D63: 70.37462642 | E63: 143.5494567
A64: 2022-07-01 | C64: 110.5339113 | D64: 73.94620342 | E64: 147.1216191
A65: 2022-08-01 | C65: 114.105781 | D65: 77.51761579 | E65: 150.6939461
A66: 2022-09-01 | C66: 117.6776507 | D66: 81.08882694 | E66: 154.2664744
A67: 2022-10-01 | C67: 121.2495204 | D67: 84.6598003 | E67: 157.8392404
A69: RENEWALS
A70: Timeline | B70: Actual | C70: Forecast | D70: Lower Confidence Bound | E70: Upper Confidence Bound
A71: =Calculations!H19 -> 2021-11-01 | B71: =Calculations!H35 -> 150
A72: =DATE(YEAR(A71),MONTH(A71)+1,DAY(A71)) -> 2021-12-01 | B72: =Calculations!I35 -> 200
A73: =DATE(YEAR(A72),MONTH(A72)+1,DAY(A72)) -> 2022-01-01 | B73: =Calculations!J35 -> 175
A74: 2022-02-01 | B74: =Calculations!K35 -> 80
A75: 2022-03-01 | B75: =Calculations!L35 -> 100
A76: 2022-04-01 | B76: =Calculations!M35 -> 110 | C76: =Table15611[[#This Row],[Actual]] -> 110 | D76: =Table15611[[#This Row],[Actual]] -> 110 | E76: =Table15611[[#This Row],[Actual]] -> 110
A77: 2022-05-01 | C77: =_xlfn.FORECAST.ETS(A77,$B$71:$B$76,$A$71:$A$76,1,1) -> 61.80201467 | D77: =C77-_xlfn.FORECAST.ETS.CONFINT(A77,$B$18:$B$23,$A$18:$A$23,0.95,1,1) -> 25.21476418 | E77: =C77+_xlfn.FORECAST.ETS.CONFINT(A77,$B$18:$B$23,$A$18:$A$23,0.95,1,1) -> 98.38926516
A78: 2022-06-01 | C78: =_xlfn.FORECAST.ETS(A78,$B$71:$B$76,$A$71:$A$76,1,1) -> 41.89244478 | D78: 5.305029648 | E78: 78.47985992
A79: 2022-07-01 | C79: 21.9828749 | D79: -14.60483293 | E79: 58.57058273
A80: 2022-08-01 | C80: 2.073305011 | D80: -34.51486015 | E80: 38.66147017
A81: 2022-09-01 | C81: -17.83626488 | D81: -54.42508859 | E81: 18.75255884
A82: 2022-10-01 | C82: -37.74583476 | D82: -74.33555481 | E82: -1.156114712

Sheet Drop Down Entry (hidden)
B2: Large
B3: Medium
B4: Small

Sheet Dashboard 3 months (hidden)

Sheet Dashboard 6 months (hidden)
